Workbook

Sheet Лист1
E1: Запуск 1 | F1: 4 | G1: 4 | H1: 8 | I1: 6 | J1: 0 | K1: 0 | L1: 0 | M1: 0 | N1: 12 | O1: 10 | P1: 0 | Q1: 0 | R1: 66 | S1: 22 | T1: 0
E2: Запуск 2 | F2: 23 | G2: 23 | H2: 27 | I2: 27 | J2: 0 | K2: 0 | L2: 0 | M2: 0 | N2: 50 | O2: 50 | P2: 0 | Q2: 0 | R2: 300 | S2: 100 | T2: 0
E3: Запуск 3 | F3: 12 | G3: 12 | H3: 14 | I3: 14 | J3: 0 | K3: 0 | L3: 0 | M3: 0 | N3: 26 | O3: 26 | P3: 0 | Q3: 0 | R3: 156 | S3: 52 | T3: 0
F4: =SUM(F1:F3) -> 39 | G4: =SUM(G1:G3) -> 39 | H4: 49 | I4: 47 | J4: 0 | K4: 0 | L4: 0 | M4: 0 | N4: 88 | O4: 86 | P4: 0 | Q4: 0 | R4: 522 | S4: 174 | T4: 0
F5: ФКГП 255.11.01.100 | G5: ФКГП 255.11.01.100-01 | H5: ФКГП 255.11.02.100 | I5: ФКГП 255.11.02.100-01 | J5: ФКГП 257.31.01.100 | K5: ФКГП 257.31.01.100-01 | L5: ФКГП 257.61.01.100 | M5: ФКГП 257.61.01.100-01 | N5: ФКГП 255.11.01.110 | O5: ФКГП 255.11.01.110-01 | P5: ФКГП 257.31.01.110 | Q5: ФКГП 257.31.01.110-01 | R5: ФКГП 255.11.01.120 | S5: ФКГП 255.11.01.140 | T5: ФКГП 257.31.01.140 | V5: План | W5: остаток | X5: приход | Y5: Всего | Z5: Дефицит | AA5: В работу | AB5: Запуск 1 | AC5: Запуск 2 | AD5: Запуск 3
A6: 80 | B6: 80 | C6: ФКГП 255.11.01.100 | D6: Каркас | E6: Сборка | F6: 1 | V6: =SUMPRODUCT($F$4:$T$4,$F6:$T6) -> 39 | X6: 4 | Y6: =SUM(W6:X6) -> 4 | Z6: =Y6-V6 -> -35 | AB6: =SUMPRODUCT($F$1:$T$1,$F6:$T6) -> 4 | AC6: =SUMPRODUCT($F$2:$T$2,$F6:$T6) -> 23 | AD6: =SUMPRODUCT($F$3:$T$3,$F6:$T6) -> 12
A7: 80 | B7: 80 | C7: ФКГП 255.11.01.100-01 | D7: Каркас | E7: Сборка | G7: 1 | V7: =SUMPRODUCT($F$4:$T$4,$F7:$T7) -> 39 | Y7: =SUM(W7:X7) -> 0 | Z7: =Y7-V7 -> -39 | AB7: =SUMPRODUCT($F$1:$T$1,$F7:$T7) -> 4 | AC7: =SUMPRODUCT($F$2:$T$2,$F7:$T7) -> 23 | AD7: =SUMPRODUCT($F$3:$T$3,$F7:$T7) -> 12
A8: 80 | B8: 80 | C8: ФКГП 255.11.02.100 | D8: Каркас | E8: Сборка | H8: 1 | V8: =SUMPRODUCT($F$4:$T$4,$F8:$T8) -> 49 | Y8: 0 | Z8: -49 | AB8: =SUMPRODUCT($F$1:$T$1,$F8:$T8) -> 8 | AC8: =SUMPRODUCT($F$2:$T$2,$F8:$T8) -> 27 | AD8: =SUMPRODUCT($F$3:$T$3,$F8:$T8) -> 14
A9: 80 | B9: 80 | C9: ФКГП 255.11.02.100-01 | D9: Каркас | E9: Сборка | I9: 1 | V9: =SUMPRODUCT($F$4:$T$4,$F9:$T9) -> 47 | Y9: 0 | Z9: -47 | AB9: =SUMPRODUCT($F$1:$T$1,$F9:$T9) -> 6 | AC9: =SUMPRODUCT($F$2:$T$2,$F9:$T9) -> 27 | AD9: =SUMPRODUCT($F$3:$T$3,$F9:$T9) -> 14
A10: 80 | B10: 80 | C10: ФКГП 257.31.01.100 | D10: Каркас | E10: Сборка | J10: 1 | V10: =SUMPRODUCT($F$4:$T$4,$F10:$T10) -> 0 | Y10: 0
A11: 80 | B11: 80 | C11: ФКГП 257.31.01.100-01 | D11: Каркас | E11: Сборка | K11: 1 | V11: =SUMPRODUCT($F$4:$T$4,$F11:$T11) -> 0 | Y11: 0
A12: 80 | B12: 80 | C12: ФКГП 257.61.01.100 | D12: Каркас | E12: Сборка | L12: 1 | V12: =SUMPRODUCT($F$4:$T$4,$F12:$T12) -> 0 | Y12: 0
A13: 80 | B13: 80 | C13: ФКГП 257.61.01.100-01 | D13: Каркас | E13: Сборка | M13: 1 | V13: =SUMPRODUCT($F$4:$T$4,$F13:$T13) -> 0 | Y13: 0
A14: 8010 | B14: 30 | C14: ФКГП 255.11.01.103 | D14: Перекладина | E14: ПА-11 | F14: 1 | H14: 1 | V14: =SUMPRODUCT($F$4:$T$4,$F14:$T14) -> 88 | W14: 73 | X14: 66 | Y14: 139 | Z14: =Y14-V14 -> 51 | AB14: =SUMPRODUCT($F$1:$T$1,$F14:$T14) -> 12 | AC14: =SUMPRODUCT($F$2:$T$2,$F14:$T14) -> 50 | AD14: =SUMPRODUCT($F$3:$T$3,$F14:$T14) -> 26
A15: 8010 | B15: 30 | C15: ФКГП 255.11.01.103-01 | D15: Перекладина | E15: ПА-11 | G15: 1 | I15: 1 | V15: =SUMPRODUCT($F$4:$T$4,$F15:$T15) -> 86 | W15: 45 | X15: 56 | Y15: 101 | Z15: 15 | AB15: =SUMPRODUCT($F$1:$T$1,$F15:$T15) -> 10 | AC15: =SUMPRODUCT($F$2:$T$2,$F15:$T15) -> 50 | AD15: =SUMPRODUCT($F$3:$T$3,$F15:$T15) -> 26
A16: 8010 | B16: 30 | C16: ФКГП 255.11.01.104 | D16: Перекладина | E16: ПА-11 | F16: 1 | G16: 1 | H16: 1 | I16: 1 | V16: =SUMPRODUCT($F$4:$T$4,$F16:$T16) -> 174 | W16: 15 | X16: 30 | Y16: 45 | Z16: -129 | AB16: =SUMPRODUCT($F$1:$T$1,$F16:$T16) -> 22 | AC16: =SUMPRODUCT($F$2:$T$2,$F16:$T16) -> 100 | AD16: =SUMPRODUCT($F$3:$T$3,$F16:$T16) -> 52
A17: 8010 | B17: 30 | C17: ФКГП 257.31.01.103 | D17: Перекладина | E17: ПА-11 | J17: 1 | L17: 1 | V17: =SUMPRODUCT($F$4:$T$4,$F17:$T17) -> 0 | Y17: 0
A18: 8010 | B18: 30 | C18: ФКГП 257.31.01.103-01 | D18: Перекладина | E18: ПА-11 | K18: 1 | M18: 1 | V18: =SUMPRODUCT($F$4:$T$4,$F18:$T18) -> 0 | Y18: 0
A19: 8010 | B19: 30 | C19: ФКГП 257.61.01.104 | D19: Перекладина | E19: ПА-11 | L19: 1 | M19: 1 | V19: =SUMPRODUCT($F$4:$T$4,$F19:$T19) -> 0 | Y19: 0
A20: 8010 | B20: 30сб | C20: ФКГП 257.31.01.100 | D20: Перекладина | E20: Сборка | J20: 1 | V20: =SUMPRODUCT($F$4:$T$4,$F20:$T20) -> 0 | Y20: 0
A21: 8061 | B21: 6110 | C21: ФКГП 257.31.01.101 | D21: Закладная | E21: Д16Т=10,0 | J21: 2 | K21: 2 | V21: =SUMPRODUCT($F$4:$T$4,$F21:$T21) -> 0 | Y21: 0
A22: 8010 | B22: 30 | C22: ФКГП 257.31.01.104 | D22: Перекладина | E22: ПА-11 L=935 | J22: 1 | K22: 1 | V22: =SUMPRODUCT($F$4:$T$4,$F22:$T22) -> 0 | Y22: 0
A23: 8010 | B23: 30 | C23: ФКГП 255.11.01.105 | D23: Труба L=90 | E23: Тр50х30х2 | F23: 3 | G23: 3 | H23: 3 | I23: 3 | J23: 3 | K23: 3 | L23: 3 | M23: 3 | V23: =SUMPRODUCT($F$4:$T$4,$F23:$T23) -> 522 | W23: 25 | X23: 23 | Y23: 48 | Z23: =Y23-V23 -> -474 | AB23: =SUMPRODUCT($F$1:$T$1,$F23:$T23) -> 66 | AC23: =SUMPRODUCT($F$2:$T$2,$F23:$T23) -> 300 | AD23: =SUMPRODUCT($F$3:$T$3,$F23:$T23) -> 156
A24: 8010 | B24: 30 | C24: ФКГП 255.11.01.106 | D24: Труба L=739 | E24: Тр50х30х2 | F24: 1 | G24: 1 | H24: 1 | I24: 1 | V24: =SUMPRODUCT($F$4:$T$4,$F24:$T24) -> 174 | W24: 10 | X24: 25 | Y24: 35 | Z24: -139 | AB24: =SUMPRODUCT($F$1:$T$1,$F24:$T24) -> 22 | AC24: =SUMPRODUCT($F$2:$T$2,$F24:$T24) -> 100 | AD24: =SUMPRODUCT($F$3:$T$3,$F24:$T24) -> 52
A25: 8010 | B25: 30 | C25: ФКГП 255.11.01.108 | D25: Труба L=738 | E25: Тр50х30х2 | F25: 1 | G25: 1 | H25: 1 | I25: 1 | V25: =SUMPRODUCT($F$4:$T$4,$F25:$T25) -> 174 | W25: 8 | X25: 19 | Y25: 27 | Z25: -147 | AB25: =SUMPRODUCT($F$1:$T$1,$F25:$T25) -> 22 | AC25: =SUMPRODUCT($F$2:$T$2,$F25:$T25) -> 100 | AD25: =SUMPRODUCT($F$3:$T$3,$F25:$T25) -> 52
A26: 8010 | B26: 61 | C26: ФКГП 255.11.01.109 | D26: Лист | E26: Амг2=3,0 | F26: 1 | G26: 1 | H26: 1 | I26: 1 | V26: =SUMPRODUCT($F$4:$T$4,$F26:$T26) -> 174 | W26: 78 | X26: 8 | Y26: 86 | Z26: -88 | AB26: =SUMPRODUCT($F$1:$T$1,$F26:$T26) -> 22 | AC26: =SUMPRODUCT($F$2:$T$2,$F26:$T26) -> 100 | AD26: =SUMPRODUCT($F$3:$T$3,$F26:$T26) -> 52
A27: 8061 | B27: 30 | C27: ФКГП 257.31.01.106 | D27: Труба L=739 | E27: Тр50х30х2 | J27: 1 | K27: 1 | L27: 1 | M27: 1 | V27: =SUMPRODUCT($F$4:$T$4,$F27:$T27) -> 0 | Y27: 0
A28: 8061 | B28: 30 | C28: ФКГП 257.31.01.108 | D28: Труба L=738 | E28: Тр50х30х2 | J28: 1 | K28: 1 | L28: 1 | M28: 1 | V28: =SUMPRODUCT($F$4:$T$4,$F28:$T28) -> 0 | Y28: 0
A29: 8061 | B29: 61 | C29: ФКГП 257.31.01.109 | D29: Лист | E29: Амг2-3 | J29: 1 | K29: 1 | L29: 1 | M29: 1 | V29: =SUMPRODUCT($F$4:$T$4,$F29:$T29) -> 0 | Y29: 0
A30: 88 | B30: 80 | C30: ФКГП 255.11.01.110 | D30: Вкладыш(Ц.хр) | E30: Сборка | F30: 1 | H30: 1 | N30: 1 | V30: =SUMPRODUCT($F$4:$T$4,$F30:$T30) -> 176 | W30: 91 | X30: 16 | Y30: 107 | Z30: =Y30-V30 -> -69 | AB30: =SUMPRODUCT($F$1:$T$1,$F30:$T30) -> 24 | AC30: =SUMPRODUCT($F$2:$T$2,$F30:$T30) -> 100 | AD30: =SUMPRODUCT($F$3:$T$3,$F30:$T30) -> 52
A31: 88 | B31: 80 | C31: ФКГП 255.11.01.110-01 | D31: Вкладыш(Ц.хр) | E31: Сборка | G31: 1 | I31: 1 | O31: 1 | V31: =SUMPRODUCT($F$4:$T$4,$F31:$T31) -> 172 | W31: 90 | X31: 100 | Y31: 190 | Z31: 18 | AB31: =SUMPRODUCT($F$1:$T$1,$F31:$T31) -> 20 | AC31: =SUMPRODUCT($F$2:$T$2,$F31:$T31) -> 100 | AD31: =SUMPRODUCT($F$3:$T$3,$F31:$T31) -> 52
A32: 88 | B32: 80 | C32: ФКГП 257.31.01.110 | D32: Вкладыш(Ц.хр) | E32: Сборка | J32: 1 | L32: 1 | P32: 1 | V32: =SUMPRODUCT($F$4:$T$4,$F32:$T32) -> 0 | Y32: 0
A33: 88 | B33: 80 | C33: ФКГП 257.31.01.110-01 | D33: Вкладыш(Ц.хр) | E33: Сборка | K33: 1 | M33: 1 | Q33: 1 | V33: =SUMPRODUCT($F$4:$T$4,$F33:$T33) -> 0 | Y33: 0
A34: 8810 | B34: 400 | C34: ФКГП 255.11.01.111 | D34: Втулка | E34: Ст.20 Ф20 | F34: 3 | G34: 3 | H34: 3 | I34: 3 | J34: 3 | K34: 3 | L34: 3 | M34: 3 | N34: 3 | O34: 3 | P34: 3 | Q34: 3 | V34: =SUMPRODUCT($F$4:$T$4,$F34:$T34) -> 1044 | W34: 62 | X34: 500 | Y34: 562 | Z34: =Y34-V34 -> -482 | AB34: =SUMPRODUCT($F$1:$T$1,$F34:$T34) -> 132 | AC34: =SUMPRODUCT($F$2:$T$2,$F34:$T34) -> 600 | AD34: =SUMPRODUCT($F$3:$T$3,$F34:$T34) -> 312
A35: 8860 | B35: 61 | C35: ФКГП 255.11.01.112 | D35: Пластина | E35: СТ 20 = 6,0 | F35: 1 | G35: 1 | H35: 1 | I35: 1 | N35: 1 | O35: 1 | V35: =SUMPRODUCT($F$4:$T$4,$F35:$T35) -> 348 | W35: 50 | X35: 16 | Y35: 66 | Z35: -282 | AB35: =SUMPRODUCT($F$1:$T$1,$F35:$T35) -> 44 | AC35: =SUMPRODUCT($F$2:$T$2,$F35:$T35) -> 200 | AD35: =SUMPRODUCT($F$3:$T$3,$F35:$T35) -> 104
A36: 8860 | B36: 61 | C36: ФКГП 257.31.01.112 | D36: Пластина | E36: СТ 20 = 6,0 | J36: 1 | K36: 1 | L36: 1 | M36: 1 | P36: 1 | Q36: 1 | V36: =SUMPRODUCT($F$4:$T$4,$F36:$T36) -> 0 | Y36: 0
A37: 8860 | B37: 61 | C37: ФКГП 255.11.01.113 | D37: Пластина L=34 | E37: 08ПС=1,5 | F37: 2 | G37: 2 | H37: 2 | I37: 2 | J37: 2 | K37: 2 | L37: 2 | M37: 2 | N37: 2 | O37: 2 | P37: 2 | Q37: 2 | V37: =SUMPRODUCT($F$4:$T$4,$F37:$T37) -> 696 | W37: 83 | X37: 44 | Y37: 127 | Z37: =Y37-V37 -> -569 | AB37: =SUMPRODUCT($F$1:$T$1,$F37:$T37) -> 88 | AC37: =SUMPRODUCT($F$2:$T$2,$F37:$T37) -> 400 | AD37: =SUMPRODUCT($F$3:$T$3,$F37:$T37) -> 208
A38: 88 | B38: 80 | C38: ФКГП 255.11.01.120 | D38: Вкладыш(Ц.хр) | E38: Сборка | F38: 3 | G38: 3 | H38: 3 | I38: 3 | J38: 3 | K38: 3 | L38: 3 | M38: 3 | N38: 3 | O38: 3 | P38: 3 | Q38: 3 | R38: 1 | V38: =SUMPRODUCT($F$4:$T$4,$F38:$T38) -> 1566 | W38: 77 | X38: 100 | Y38: 177 | Z38: -1389 | AB38: =SUMPRODUCT($F$1:$T$1,$F38:$T38) -> 198 | AC38: =SUMPRODUCT($F$2:$T$2,$F38:$T38) -> 900 | AD38: =SUMPRODUCT($F$3:$T$3,$F38:$T38) -> 468
A39: 8860 | B39: 61 | C39: ФКГП 255.11.01.121 | D39: Пластина | E39: СТ 20 = 6,0 | F39: 2 | G39: 2 | H39: 2 | I39: 2 | J39: 2 | K39: 2 | L39: 2 | M39: 2 | N39: 2 | O39: 2 | P39: 2 | Q39: 2 | R39: 2 | V39: =SUMPRODUCT($F$4:$T$4,$F39:$T39) -> 1740 | W39: 37 | X39: 100 | Y39: 137 | Z39: -1603 | AB39: =SUMPRODUCT($F$1:$T$1,$F39:$T39) -> 220 | AC39: =SUMPRODUCT($F$2:$T$2,$F39:$T39) -> 1000 | AD39: =SUMPRODUCT($F$3:$T$3,$F39:$T39) -> 520
A40: 88400 | B40: 400 | C40: ФКГП 255.11.01.123 | D40: Втулка | E40: Ст.3d | F40: 1 | G40: 1 | H40: 1 | I40: 1 | J40: 1 | K40: 1 | L40: 1 | M40: 1 | N40: 1 | O40: 1 | P40: 1 | Q40: 1 | R40: 1 | V40: =SUMPRODUCT($F$4:$T$4,$F40:$T40) -> 870 | W40: 43 | X40: 100 | Y40: 143 | Z40: -727 | AB40: =SUMPRODUCT($F$1:$T$1,$F40:$T40) -> 110 | AC40: =SUMPRODUCT($F$2:$T$2,$F40:$T40) -> 500 | AD40: =SUMPRODUCT($F$3:$T$3,$F40:$T40) -> 260
A41: 88 | B41: 80 | C41: ФКГП 255.11.01.140 | D41: Вкладыш | E41: Сборка | F41: 1 | G41: 1 | H41: 1 | I41: 1 | N41: 1 | O41: 1 | S41: 1 | V41: =SUMPRODUCT($F$4:$T$4,$F41:$T41) -> 522 | W41: 80 | X41: 81 | Y41: 161 | Z41: -361 | AB41: =SUMPRODUCT($F$1:$T$1,$F41:$T41) -> 66 | AC41: =SUMPRODUCT($F$2:$T$2,$F41:$T41) -> 300 | AD41: =SUMPRODUCT($F$3:$T$3,$F41:$T41) -> 156
A42: 8860 | B42: 61 | C42: ФКГП 255.11.01.141 | D42: Пластина | E42: 08ПС=3,0 | F42: 1 | G42: 1 | H42: 1 | I42: 1 | N42: 1 | O42: 1 | S42: 1 | V42: =SUMPRODUCT($F$4:$T$4,$F42:$T42) -> 522 | W42: 77 | X42: 18 | Y42: 95 | Z42: -427 | AB42: =SUMPRODUCT($F$1:$T$1,$F42:$T42) -> 66 | AC42: =SUMPRODUCT($F$2:$T$2,$F42:$T42) -> 300 | AD42: =SUMPRODUCT($F$3:$T$3,$F42:$T42) -> 156
A43: 88 | B43: 400 | C43: ФКГП 255.11.01.142 | D43: Втулка | E43: Ст.20 Ф14 | F43: 7 | G43: 7 | H43: 7 | I43: 7 | J43: 7 | K43: 7 | L43: 7 | M43: 7 | N43: 7 | O43: 7 | P43: 7 | Q43: 7 | V43: =SUMPRODUCT($F$4:$T$4,$F43:$T43) -> 2436 | W43: 53 | X43: 500 | Y43: 553 | Z43: -1883 | AB43: =SUMPRODUCT($F$1:$T$1,$F43:$T43) -> 308 | AC43: =SUMPRODUCT($F$2:$T$2,$F43:$T43) -> 1400 | AD43: =SUMPRODUCT($F$3:$T$3,$F43:$T43) -> 728
A44: 88 | B44: 80 | C44: ФКГП 257.31.01.140 | D44: Вкладыш | E44: Сборка | J44: 1 | K44: 1 | L44: 1 | M44: 1 | P44: 1 | Q44: 1 | V44: =SUMPRODUCT($F$4:$T$4,$F44:$T44) -> 0 | Y44: 0
A45: 8860 | B45: 61 | C45: ФКГП 257.31.01.141 | D45: Пластина | E45: 08ПС=3,0 | J45: 1 | K45: 1 | L45: 1 | M45: 1 | P45: 1 | Q45: 1 | V45: =SUMPRODUCT($F$4:$T$4,$F45:$T45) -> 0 | Y45: 0
A46: 8810 | B46: 30сб | C46: ФКГП 255.11.01.150 | D46: Стойка | E46: Сборка | F46: 1 | H46: 1 | V46: =SUMPRODUCT($F$4:$T$4,$F46:$T46) -> 88 | W46: 40 | X46: 79 | Y46: 119 | Z46: =Y46-V46 -> 31 | AB46: =SUMPRODUCT($F$1:$T$1,$F46:$T46) -> 12 | AC46: =SUMPRODUCT($F$2:$T$2,$F46:$T46) -> 50 | AD46: =SUMPRODUCT($F$3:$T$3,$F46:$T46) -> 26
A47: 8810 | B47: 30сб | C47: ФКГП 255.11.01.150-01 | D47: Стойка | E47: Сборка | G47: 1 | I47: 1 | V47: =SUMPRODUCT($F$4:$T$4,$F47:$T47) -> 86 | W47: 94 | X47: 32 | Y47: 126 | Z47: 40 | AB47: =SUMPRODUCT($F$1:$T$1,$F47:$T47) -> 10 | AC47: =SUMPRODUCT($F$2:$T$2,$F47:$T47) -> 50 | AD47: =SUMPRODUCT($F$3:$T$3,$F47:$T47) -> 26
A48: 8810 | B48: 30сб | C48: ФКГП 257.31.01.150 | D48: Стойка | E48: Сборка | J48: 1 | V48: =SUMPRODUCT($F$4:$T$4,$F48:$T48) -> 0 | Y48: 0
A49: 8810 | B49: 30сб | C49: ФКГП 257.31.01.150-01 | D49: Стойка | E49: Сборка | K49: 1 | V49: =SUMPRODUCT($F$4:$T$4,$F49:$T49) -> 0 | Y49: 0
A50: 8810 | B50: 30сб | C50: ФКГП 257.61.01.150 | D50: Стойка | E50: Сборка | L50: 1 | V50: =SUMPRODUCT($F$4:$T$4,$F50:$T50) -> 0 | Y50: 0
A51: 8810 | B51: 30сб | C51: ФКГП 257.61.01.150-01 | D51: Стойка | E51: Сборка | M51: 1 | V51: =SUMPRODUCT($F$4:$T$4,$F51:$T51) -> 0 | Y51: 0
A52: 8810 | B52: 30 | C52: ФКГП 255.11.01.151 | D52: Стойка | E52: ПА-11 L=2200 | F52: 1 | H52: 1 | L52: 1 | V52: =SUMPRODUCT($F$4:$T$4,$F52:$T52) -> 88 | W52: 16 | X52: 96 | Y52: 112 | Z52: =Y52-V52 -> 24 | AB52: =SUMPRODUCT($F$1:$T$1,$F52:$T52) -> 12 | AC52: =SUMPRODUCT($F$2:$T$2,$F52:$T52) -> 50 | AD52: =SUMPRODUCT($F$3:$T$3,$F52:$T52) -> 26
A53: 8810 | B53: 30 | C53: ФКГП 255.11.01.151-01 | D53: Стойка | E53: ПА-11 L=2200 | G53: 1 | I53: 1 | M53: 1 | V53: =SUMPRODUCT($F$4:$T$4,$F53:$T53) -> 86 | W53: 28 | X53: 42 | Y53: 70 | Z53: -16 | AB53: =SUMPRODUCT($F$1:$T$1,$F53:$T53) -> 10 | AC53: =SUMPRODUCT($F$2:$T$2,$F53:$T53) -> 50 | AD53: =SUMPRODUCT($F$3:$T$3,$F53:$T53) -> 26
A54: 8810 | B54: 30 | C54: ФКГП 257.31.01.151 | D54: Стойка | E54: ПА-11 L=2200 | J54: 1 | V54: =SUMPRODUCT($F$4:$T$4,$F54:$T54) -> 0 | Y54: 0
A55: 8810 | B55: 30 | C55: ФКГП 257.31.01.151-01 | D55: Стойка | E55: ПА-11 L=2200 | K55: 1 | V55: =SUMPRODUCT($F$4:$T$4,$F55:$T55) -> 0 | Y55: 0
A56: 8810 | B56: 10 | C56: ФКГП 255.11.01.152 | D56: Втулка | E56: АМг6 Ф25 | F56: 2 | G56: 2 | H56: 2 | I56: 2 | J56: 2 | K56: 2 | L56: 2 | M56: 2 | V56: =SUMPRODUCT($F$4:$T$4,$F56:$T56) -> 348 | W56: 94 | X56: 69 | Y56: 163 | Z56: =Y56-V56 -> -185 | AB56: =SUMPRODUCT($F$1:$T$1,$F56:$T56) -> 44 | AC56: =SUMPRODUCT($F$2:$T$2,$F56:$T56) -> 200 | AD56: =SUMPRODUCT($F$3:$T$3,$F56:$T56) -> 104
A57: 8810 | B57: 10 | C57: ФКГП 255.11.01.157 | D57: Втулка | E57: АМг6 Ф30 | F57: 2 | G57: 2 | H57: 2 | I57: 2 | J57: 2 | K57: 2 | L57: 2 | M57: 2 | V57: =SUMPRODUCT($F$4:$T$4,$F57:$T57) -> 348 | W57: 69 | X57: 97 | Y57: 166 | Z57: -182 | AB57: =SUMPRODUCT($F$1:$T$1,$F57:$T57) -> 44 | AC57: =SUMPRODUCT($F$2:$T$2,$F57:$T57) -> 200 | AD57: =SUMPRODUCT($F$3:$T$3,$F57:$T57) -> 104
A58: 8810 | B58: 30 | C58: ФКГП 255.11.01.158 | D58: Труба L=72,5 | E58: Тр 50х30х2 | F58: 2 | G58: 2 | H58: 2 | I58: 2 | J58: 2 | K58: 2 | L58: 2 | M58: 2 | V58: =SUMPRODUCT($F$4:$T$4,$F58:$T58) -> 348 | W58: 51 | X58: 82 | Y58: 133 | Z58: -215 | AB58: =SUMPRODUCT($F$1:$T$1,$F58:$T58) -> 44 | AC58: =SUMPRODUCT($F$2:$T$2,$F58:$T58) -> 200 | AD58: =SUMPRODUCT($F$3:$T$3,$F58:$T58) -> 104
A59: 8810 | B59: 20 | C59: ФКГП 255.11.01.220 | D59: Вкладыш | E59: Сборка | F59: 1 | G59: 1 | H59: 1 | I59: 1 | J59: 1 | K59: 1 | L59: 1 | M59: 1 | V59: =SUMPRODUCT($F$4:$T$4,$F59:$T59) -> 174 | W59: 99 | X59: 38 | Y59: 137 | Z59: -37 | AB59: =SUMPRODUCT($F$1:$T$1,$F59:$T59) -> 22 | AC59: =SUMPRODUCT($F$2:$T$2,$F59:$T59) -> 100 | AD59: =SUMPRODUCT($F$3:$T$3,$F59:$T59) -> 52
A60: 88400 | B60: 400 | C60: ФКГП 255.11.01.215 | D60: Втулка (Ц.хр) | E60: Ст.10 Ф10 | F60: 2 | G60: 2 | H60: 2 | I60: 2 | J60: 2 | K60: 2 | L60: 2 | M60: 2 | V60: =SUMPRODUCT($F$4:$T$4,$F60:$T60) -> 348 | W60: 24 | X60: 14 | Y60: 38 | Z60: -310 | AB60: =SUMPRODUCT($F$1:$T$1,$F60:$T60) -> 44 | AC60: =SUMPRODUCT($F$2:$T$2,$F60:$T60) -> 200 | AD60: =SUMPRODUCT($F$3:$T$3,$F60:$T60) -> 104
A61: 88400 | B61: 400 | C61: ФКГП 255.11.01.216 | D61: Втулка (Ц.хр) | E61: Ст.10 Ф8 | F61: 2 | G61: 2 | H61: 2 | I61: 2 | J61: 2 | K61: 2 | L61: 2 | M61: 2 | V61: =SUMPRODUCT($F$4:$T$4,$F61:$T61) -> 348 | W61: 66 | X61: 51 | Y61: 117 | Z61: -231 | AB61: =SUMPRODUCT($F$1:$T$1,$F61:$T61) -> 44 | AC61: =SUMPRODUCT($F$2:$T$2,$F61:$T61) -> 200 | AD61: =SUMPRODUCT($F$3:$T$3,$F61:$T61) -> 104
A62: 8810 | B62: 61 | C62: ФКГП 255.11.01.221 | D62: Кронштейн(Ц.хр) | E62: 08пс=2,0 | F62: 1 | G62: 1 | H62: 1 | I62: 1 | J62: 1 | K62: 1 | L62: 1 | M62: 1 | V62: =SUMPRODUCT($F$4:$T$4,$F62:$T62) -> 174 | W62: 28 | X62: 8 | Y62: 36 | Z62: -138 | AB62: =SUMPRODUCT($F$1:$T$1,$F62:$T62) -> 22 | AC62: =SUMPRODUCT($F$2:$T$2,$F62:$T62) -> 100 | AD62: =SUMPRODUCT($F$3:$T$3,$F62:$T62) -> 52
A63: 8810 | B63: 30сб | C63: ФКГП 255.11.01.160 | D63: Стойка | E63: Сборка | H63: 1 | V63: =SUMPRODUCT($F$4:$T$4,$F63:$T63) -> 49 | W63: 17 | X63: 71 | Y63: 88 | Z63: 39 | AB63: =SUMPRODUCT($F$1:$T$1,$F63:$T63) -> 8 | AC63: =SUMPRODUCT($F$2:$T$2,$F63:$T63) -> 27 | AD63: =SUMPRODUCT($F$3:$T$3,$F63:$T63) -> 14
A64: 8810 | B64: 30сб | C64: ФКГП 255.11.01.160-01 | D64: Стойка | E64: Сборка | I64: 1 | V64: =SUMPRODUCT($F$4:$T$4,$F64:$T64) -> 47 | W64: 55 | X64: 93 | Y64: 148 | Z64: 101 | AB64: =SUMPRODUCT($F$1:$T$1,$F64:$T64) -> 6 | AC64: =SUMPRODUCT($F$2:$T$2,$F64:$T64) -> 27 | AD64: =SUMPRODUCT($F$3:$T$3,$F64:$T64) -> 14
A65: 8810 | B65: 30 | C65: ФКГП 255.11.01.161 | D65: Стойка | E65: ПА-11 L=2200 | H65: 1 | V65: =SUMPRODUCT($F$4:$T$4,$F65:$T65) -> 49 | W65: 10 | X65: 24 | Y65: 34 | Z65: -15 | AB65: =SUMPRODUCT($F$1:$T$1,$F65:$T65) -> 8 | AC65: =SUMPRODUCT($F$2:$T$2,$F65:$T65) -> 27 | AD65: =SUMPRODUCT($F$3:$T$3,$F65:$T65) -> 14
A66: 8810 | B66: 30 | C66: ФКГП 255.11.01.161-01 | D66: Стойка | E66: ПА-11 L=2200 | I66: 1 | V66: =SUMPRODUCT($F$4:$T$4,$F66:$T66) -> 47 | W66: 14 | X66: 79 | Y66: 93 | Z66: 46 | AB66: =SUMPRODUCT($F$1:$T$1,$F66:$T66) -> 6 | AC66: =SUMPRODUCT($F$2:$T$2,$F66:$T66) -> 27 | AD66: =SUMPRODUCT($F$3:$T$3,$F66:$T66) -> 14
A67: 88400 | B67: 400 | C67: ФКГП 255.11.01.173 | D67: Винт | E67: Ст.20 Ф6,0 | F67: 4 | G67: 4 | H67: 4 | I67: 4 | J67: 4 | K67: 4 | L67: 4 | M67: 4 | V67: =SUMPRODUCT($F$4:$T$4,$F67:$T67) -> 696 | W67: 25 | X67: 15 | Y67: 40 | Z67: -656 | AB67: =SUMPRODUCT($F$1:$T$1,$F67:$T67) -> 88 | AC67: =SUMPRODUCT($F$2:$T$2,$F67:$T67) -> 400 | AD67: =SUMPRODUCT($F$3:$T$3,$F67:$T67) -> 208
A68: 8810 | B68: 6110 | C68: ФКГП 255.11.01.172 | D68: Кронштейн | E68: СТ 20 = 6,0 | F68: 2 | G68: 2 | H68: 2 | I68: 2 | J68: 2 | K68: 2 | L68: 2 | M68: 2 | V68: =SUMPRODUCT($F$4:$T$4,$F68:$T68) -> 348 | W68: 62 | X68: 63 | Y68: 125 | Z68: -223 | AB68: =SUMPRODUCT($F$1:$T$1,$F68:$T68) -> 44 | AC68: =SUMPRODUCT($F$2:$T$2,$F68:$T68) -> 200 | AD68: =SUMPRODUCT($F$3:$T$3,$F68:$T68) -> 104
A69: 8810 | B69: 61 | C69: ФКГП 255.11.01.177 | D69: Скоба | E69: 08ПС=1,5 | F69: 2 | G69: 2 | H69: 2 | I69: 2 | J69: 2 | K69: 2 | L69: 2 | M69: 2 | V69: =SUMPRODUCT($F$4:$T$4,$F69:$T69) -> 348 | W69: 67 | X69: 98 | Y69: 165 | Z69: -183 | AB69: =SUMPRODUCT($F$1:$T$1,$F69:$T69) -> 44 | AC69: =SUMPRODUCT($F$2:$T$2,$F69:$T69) -> 200 | AD69: =SUMPRODUCT($F$3:$T$3,$F69:$T69) -> 104
A70: 8810 | B70: 20 | C70: ФКГП 255.11.01.230 | D70: Вкладыш | E70: Сборка | F70: 2 | G70: 2 | H70: 2 | I70: 2 | J70: 2 | K70: 2 | L70: 2 | M70: 2 | V70: =SUMPRODUCT($F$4:$T$4,$F70:$T70) -> 348 | W70: 12 | X70: 66 | Y70: 78 | Z70: -270 | AB70: =SUMPRODUCT($F$1:$T$1,$F70:$T70) -> 44 | AC70: =SUMPRODUCT($F$2:$T$2,$F70:$T70) -> 200 | AD70: =SUMPRODUCT($F$3:$T$3,$F70:$T70) -> 104
A71: 8810 | B71: 61 | C71: ФКГП 255.11.01.231 | D71: Кронштейн (Ц.хр) | E71: 08пс=2,0 | F71: 1 | G71: 1 | H71: 1 | I71: 1 | J71: 1 | K71: 1 | L71: 1 | M71: 1 | V71: =SUMPRODUCT($F$4:$T$4,$F71:$T71) -> 174 | W71: 50 | X71: 88 | Y71: =SUM(W71:X71) -> 138 | Z71: -36 | AB71: =SUMPRODUCT($F$1:$T$1,$F71:$T71) -> 22 | AC71: =SUMPRODUCT($F$2:$T$2,$F71:$T71) -> 100 | AD71: =SUMPRODUCT($F$3:$T$3,$F71:$T71) -> 52
A72: 88400 | B72: 400 | C72: ФКГП 255.11.01.232 | D72: Втулка (Ц.хр) | E72: Ст.10 Ф12 | F72: 3 | G72: 3 | H72: 3 | I72: 3 | J72: 3 | K72: 3 | L72: 3 | M72: 3 | V72: =SUMPRODUCT($F$4:$T$4,$F72:$T72) -> 522 | W72: 28 | X72: 90 | Y72: 118 | Z72: -404 | AB72: =SUMPRODUCT($F$1:$T$1,$F72:$T72) -> 66 | AC72: =SUMPRODUCT($F$2:$T$2,$F72:$T72) -> 300 | AD72: =SUMPRODUCT($F$3:$T$3,$F72:$T72) -> 156
A73: 8810 | B73: 30сб | C73: ФКГП 255.11.01.170 | D73: Стойка | E73: Сборка | F73: 1 | L73: 1 | V73: =SUMPRODUCT($F$4:$T$4,$F73:$T73) -> 39 | W73: 22 | X73: 76 | Y73: 98 | Z73: 59 | AB73: =SUMPRODUCT($F$1:$T$1,$F73:$T73) -> 4 | AC73: =SUMPRODUCT($F$2:$T$2,$F73:$T73) -> 23 | AD73: =SUMPRODUCT($F$3:$T$3,$F73:$T73) -> 12
A74: 8810 | B74: 30сб | C74: ФКГП 255.11.01.170-01 | D74: Стойка | E74: Сборка | G74: 1 | M74: 1 | V74: =SUMPRODUCT($F$4:$T$4,$F74:$T74) -> 39 | W74: 60 | X74: 95 | Y74: 155 | Z74: 116 | AB74: =SUMPRODUCT($F$1:$T$1,$F74:$T74) -> 4 | AC74: =SUMPRODUCT($F$2:$T$2,$F74:$T74) -> 23 | AD74: =SUMPRODUCT($F$3:$T$3,$F74:$T74) -> 12
A75: 8810 | B75: 30сб | C75: ФКГП 257.31.01.170 | D75: Стойка | E75: Сборка | J75: 1 | V75: =SUMPRODUCT($F$4:$T$4,$F75:$T75) -> 0 | Y75: 0
A76: 8810 | B76: 30сб | C76: ФКГП 257.31.01.170-01 | D76: Стойка | E76: Сборка | K76: 1 | V76: =SUMPRODUCT($F$4:$T$4,$F76:$T76) -> 0 | Y76: 0
A77: 8810 | B77: 30 | C77: ФКГП 255.11.01.171 | D77: Стойка | E77: ПА-11 L=2200 | F77: 1 | L77: 1 | V77: =SUMPRODUCT($F$4:$T$4,$F77:$T77) -> 39 | W77: 32 | X77: 61 | Y77: 93 | Z77: =Y77-V77 -> 54 | AB77: =SUMPRODUCT($F$1:$T$1,$F77:$T77) -> 4 | AC77: =SUMPRODUCT($F$2:$T$2,$F77:$T77) -> 23 | AD77: =SUMPRODUCT($F$3:$T$3,$F77:$T77) -> 12
A78: 8810 | B78: 30 | C78: ФКГП 255.11.01.171-01 | D78: Стойка | E78: ПА-11 L=2200 | G78: 1 | M78: 1 | V78: =SUMPRODUCT($F$4:$T$4,$F78:$T78) -> 39 | W78: 68 | X78: 22 | Y78: 90 | Z78: 51 | AB78: =SUMPRODUCT($F$1:$T$1,$F78:$T78) -> 4 | AC78: =SUMPRODUCT($F$2:$T$2,$F78:$T78) -> 23 | AD78: =SUMPRODUCT($F$3:$T$3,$F78:$T78) -> 12
A79: 8810 | B79: 30 | C79: ФКГП 257.31.01.171 | D79: Стойка | E79: ПА-11 L=2200 | J79: 1 | V79: =SUMPRODUCT($F$4:$T$4,$F79:$T79) -> 0 | Y79: 0
A80: 8810 | B80: 30 | C80: ФКГП 257.31.01.171-01 | D80: Стойка | E80: ПА-11 L=2200 | K80: 1 | V80: =SUMPRODUCT($F$4:$T$4,$F80:$T80) -> 0 | Y80: 0
B81: 30сб | C81: ФКГП 255.11.01.200 | D81: Облицовка | E81: Сборка | F81: 1 | V81: =SUMPRODUCT($F$1:$T$1,$F81:$T81) -> 4 | Y81: 0
B82: 30сб | C82: ФКГП 255.11.01.200-01 | D82: Облицовка | E82: Сборка | G82: 1 | V82: =SUMPRODUCT($F$1:$T$1,$F82:$T82) -> 4 | Y82: 0
B83: 30сб | C83: ФКГП 255.11.02.200 | D83: Облицовка | E83: Сборка | H83: 1 | I83: 1 | V83: =SUMPRODUCT($F$1:$T$1,$F83:$T83) -> 14 | Y83: 0
B84: 30сб | C84: ФКГП 257.31.01.200 | D84: Облицовка | E84: Сборка | J84: 1 | V84: =SUMPRODUCT($F$1:$T$1,$F84:$T84) -> 0 | Y84: 0
B85: 30сб | C85: ФКГП 257.31.01.200-01 | D85: Облицовка | E85: Сборка | K85: 1 | V85: =SUMPRODUCT($F$1:$T$1,$F85:$T85) -> 0 | Y85: 0
B86: 30сб | C86: ФКГП 257.61.01.200 | D86: Облицовка | E86: Сборка | L86: 1 | V86: =SUMPRODUCT($F$1:$T$1,$F86:$T86) -> 0 | Y86: 0
